bitfinex-derivatives/quotes_ETHF0:USTF0_20250520
["timestamp","ask_amount","ask_price","bid_price","bid_amount"]
[1747771188315,0.00599018,2502.7,2502.4,15.707]
[1747771188506,0.80482018,2502.7,2502.5,15.707]
[1747771188812,0.80482018,2502.7,2502.6,0.04485455]
[1747771189002,0.00599018,2502.7,2502.6,0.04485455]
[1747771189210,2.80268018,2502.7,2502.6,0.04485455]
[1747771189409,10.21167018,2502.7,2502.2,0.00599018]
[1747771189618,1.2856,2502.6,2502.2,15.71299018]
[1747771189811,2.08445,2502.6,2502.3,3.2078]
[1747771190109,2.08445,2502.6,2502.3,0.79893]
[1747771190410,3.28364,2502.6,2502.2,0.00599018]
[1747771190608,4.08249,2502.6,2502.3,0.79893]
[1747771190814,4.08251,2502.6,2502.2,0.80494018]
[1747771191016,0.00599018,2502.7,2502.3,0.79892]
[1747771191315,0.00599018,2502.7,2502.6,0.79884]
[1747771191615,0.00599018,2502.7,2502.6,17.89374]
[1747771192407,0.00599018,2502.7,2502.6,17.0949]
[1747771192611,0.00599018,2502.7,2502.6,17.89374]
[1747771192818,5.21167018,2502.7,2502.2,0.00599018]
[1747771193008,0.79893,2502.4,2502.2,0.00599018]
[1747771193207,4.6054,2502.6,2502.2,0.00599018]
[1747771193508,0.79888,2502.5,2502.3,16.50593]
[1747771193711,0.80481018,2502.7,2502.4,0.7989]
[1747771193909,2.00399018,2502.7,2502.2,0.00599018]
[1747771194114,0.79894,2502.3,2502.2,15.71299018]
[1747771195316,3.21379018,2502.7,2502.3,1.99735]
[1747771195516,0.00599018,2502.7,2502.6,0.79884]
[1747771195815,1.99622,2503.8,2503.6,0.79851]
[1747771195816,0.79847,2503.8,2503.6,0.79851]
[1747771196025,1.99625,2503.7,2503.4,15.707]
[1747771196207,0.79855,2503.5,2503.4,15.707]
[1747771196614,1.99658,2503.3,2502.8,1.4021]
[1747771196817,1.4165,2503.4,2502.9,15.707]
[1747771197415,3.2078,2503.3,2502.9,15.707]
[1747771197613,0.79871,2503.0,2502.9,15.707]
[1747771198013,5.205445,2503.0,2502.5,15.706]
[1747771198218,0.7989,2502.4,2502.3,1.3588]
[1747771198417,0.79894,2502.3,2502.2,0.00599018]
[1747771198823,2.79714,2502.3,2502.2,0.00599018]
[1747771199516,0.79909,2501.8,2501.7,15.706]
[1747771199718,0.79909,2501.8,2501.4,0.2697616]
[1747771199719,0.79916,2501.6,2501.4,0.2697616]
[1747771199915,1.99872,2501.8,2501.4,0.2697616]
[1747771200116,3.2078,2502.3,2501.4,0.2697616]
[1747771200314,1.9975,2502.1,2501.5,1.3791]
[1747771200516,2.00349018,2502.1,2501.5,1.38509018]
[1747771200715,2.00349018,2502.1,2501.5,4.59289018]
[1747771200716,1.3173,2502.0,2501.5,4.59289018]
[1747771200921,0.79914,2501.7,2501.5,5.39207018]
[1747771201220,0.79916,2501.6,2501.5,1.38509018]
[1747771202021,0.7991,2501.8,2501.6,0.79915]
[1747771202225,0.7991,2501.8,2501.7,1.3791]
[1747771202526,3.2078,2502.0,2501.5,0.00599018]
[1747771202719,0.00599018,2502.1,2501.7,3.2078]
[1747771203024,3.2078,2503.0,2502.0,3.2078]
[1747771203223,5.20442,2503.3,2502.5,3.2078]
[1747771203421,0.79881,2502.7,2502.6,17.1115]
[1747771203924,0.79881,2502.7,2502.6,17.43115212]
[1747771204320,9.00661,2502.7,2502.6,2.12e-06]
[1747771204627,0.79893,2502.3,2502.2,0.53683963]
[1747771204812,0.79903,2502.0,2501.5,15.71299018]
[1747771205017,3.2078,2502.0,2501.5,15.71299018]
[1747771205327,1.99731,2502.4,2501.5,15.71299018]
[1747771205328,3.2078,2502.1,2501.5,15.71299018]
[1747771205519,3.2078,2502.2,2501.6,1.361]
[1747771205717,3.2078,2502.2,2501.8,0.79909]
[1747771205919,0.79903,2502.0,2501.9,1.361]
[1747771206125,0.79916,2501.6,2501.5,0.00599018]
[1747771207221,2.79792,2501.6,2501.5,0.00599018]
[1747771207521,7.79792,2501.6,2501.5,0.00599018]
[1747771207727,0.79935,2501.0,2500.9,15.707]
[1747771207925,0.79941,2500.8,2500.7,3.2078]
[1747771208224,0.79961,2500.2,2500.1,15.708]
[1747771208924,0.79967,2500.0,2499.9,3.21379018]
[1747771209126,4.00747,2500.0,2499.9,0.00599018]
[1747771209326,2.00492018,2500.4,2499.9,3.21379018]
[1747771209327,0.00599018,2500.4,2499.9,3.21379018]
[1747771209628,3.2078,2500.2,2500.0,1.4137]
[1747771210724,5.20772,2500.2,2499.9,0.00599018]
[1747771210927,1.3231,2500.1,2499.9,0.00599018]
[1747771211127,0.79967,2500.0,2499.9,0.00599018]
[1747771211622,2.79971,2500.0,2499.9,0.00599018]
[1747771211828,4.16651,2500.0,2499.9,0.00599018]
[1747771213026,1.3668,2500.0,2499.9,0.00599018]
[1747771213232,3.36684,2500.0,2499.9,0.00599018]
[1747771213829,4.16651,2500.0,2499.9,0.00599018]
[1747771215134,7.37431,2500.0,2499.9,0.00599018]
[1747771215730,6.57464,2500.0,2499.9,0.80569018]
[1747771215932,5.20784,2500.0,2499.9,0.80569018]
[1747771216136,5.20784,2500.0,2499.9,0.00599018]
[1747771216323,6.00751,2500.0,2499.9,0.00599018]
[1747771216526,7.29121,2500.0,2499.9,0.00599018]
[1747771216925,12.29121,2500.0,2499.9,1.8e-07]
[1747771218131,6.49154,2500.0,2499.9,1.8e-07]
[1747771218633,7.28402572,2500.0,2499.9,1.8e-07]
[1747771218829,6.48435572,2500.0,2499.9,1.8e-07]
[1747771219031,7.28402572,2500.0,2499.9,1.8e-07]
[1747771220327,4.08341,2500.0,2499.9,1.8e-07]
[1747771220729,3.2078,2500.3,2499.9,3.20780018]
[1747771220930,0.79964,2500.1,2500.0,1.3152]
[1747771221130,0.79967,2500.0,2499.9,1.8e-07]
[1747771221330,4.00747,2500.0,2499.9,1.8e-07]
[1747771221535,11.00751,2500.0,2499.9,1.8e-07]
[1747771221835,0.79999,2499.0,2498.9,0.31999386]
[1747771222034,6.00863,2499.0,2498.9,0.31999386]
[1747771222227,0.80015,2498.5,2498.4,1.26125517]
[1747771222428,4.00795,2498.5,2498.4,1.26125517]
[1747771222630,5.20904,2498.5,2497.8,15.775]
[1747771222933,4.00812,2498.0,2497.9,1.31923457]
[1747771223135,4.00812,2498.0,2497.9,0.00403457]
[1747771223335,4.58180252,2498.4,2497.9,0.00403457]
[1747771223637,3.2078,2499.4,2498.1,3.2078]
[1747771223841,0.8,2499.0,2498.7,0.80007]
[1747771224026,0.8,2499.0,2498.8,1.4016]
[1747771224228,0.80002,2498.9,2498.8,1.4016]
[1747771224525,0.00600252,2499.1,2498.8,1.4016]
[1747771224732,0.80002,2498.9,2498.8,1.4016]
[1747771225240,0.80001,2499.0,2498.8,1.4016]
[1747771225426,0.00600252,2499.1,2499.0,0.79999]
[1747771226238,0.00600252,2499.1,2499.0,21.57699]
[1747771226435,3.2078,2499.9,2499.8,0.79973]
[1747771226736,0.65554224,2500.1,2499.7,3.2078]
[1747771226928,3.2078,2500.0,2499.5,3.2078]
[1747771227133,4.6323,2500.0,2499.5,3.2078]
[1747771227441,8.63771252,2500.0,2499.6,3.2078]
[1747771227738,8.63771252,2500.0,2499.5,0.00600252]
[1747771227739,0.7998,2499.6,2499.5,0.00600252]
[1747771227935,0.79975,2499.8,2499.6,0.79978]
[1747771228135,0.79975,2499.8,2499.7,1.3905]
[1747771228733,4.63830252,2500.0,2499.7,1.3905]
[1747771228936,0.79973,2499.8,2499.5,0.00600252]
[1747771229135,0.79973,2499.8,2498.6,4.00051]
[1747771229136,1.4245,2499.7,2495.4,2.10374473]
[1747771229338,0.80149,2494.4,2493.1,6.71168644]
[1747771229637,3.2078,2495.4,2494.0,3.2078]
[1747771229834,3.2078,2494.4,2494.0,7.5538205]
[1747771230029,4.00936,2494.1,2494.0,0.00600252]
[1747771230233,3.2078,2494.1,2494.0,0.00600252]
[1747771230431,5.21257,2494.1,2494.0,3.21380252]
[1747771230639,0.00600252,2494.4,2494.0,7.55982302]
[1747771230830,2.01065253,2494.4,2494.2,4.3460205]
[1747771231037,3.2078,2494.3,2494.2,7.5538205]
[1747771231334,3.2078,2494.3,2494.1,20.176]
[1747771231638,0.00600252,2494.4,2494.2,7.5538205]
[1747771231840,0.00600252,2494.4,2494.3,7.5538205]
[1747771232139,0.80132,2494.9,2494.3,8.8415205]
[1747771232337,3.2078,2495.1,2494.4,3.2078]
[1747771232537,3.2078,2494.7,2494.4,23.3838]
[1747771232734,3.2078,2495.1,2494.8,4.3460205]
[1747771232935,3.2078,2495.1,2494.9,3.2078]
[1747771233136,5.21185001,2495.1,2494.5,21.4637]
[1747771233341,6.60545001,2495.1,2494.6,27.7298205]
[1747771233546,3.2078,2494.9,2494.6,7.5538205]
[1747771233841,3.2078,2494.9,2494.7,27.7378205]
[1747771234042,3.2078,2494.9,2494.7,24.5300205]
[1747771234341,6.01327,2494.9,2494.8,3.2078]
[1747771234643,5.21197,2494.9,2494.8,3.2078]
[1747771234847,0.8014,2494.6,2494.5,1.2877]
[1747771235036,0.8014,2494.6,2494.5,25.8177205]
[1747771235344,0.80139,2494.7,2494.5,29.0255205]
[1747771235546,3.2078,2494.9,2494.8,7.5538205]
[1747771235739,0.00600252,2495.2,2494.8,12.5538205]
[1747771235940,1.3936,2496.2,2495.4,4.3460205]
[1747771236243,1.3936,2496.2,2494.9,1.388]
[1747771236244,0.80098,2495.9,2495.8,4.3460205]
[1747771236536,0.80102,2495.8,2495.7,4.3460205]
[1747771236743,0.80102,2495.8,2495.6,20.189]
[1747771236744,2.003405,2495.8,2495.6,20.189]
[1747771236930,0.80105,2495.7,2495.6,7.5538205]
[1747771237129,0.80108,2495.6,2495.5,1.30830252]
[1747771237640,0.80108,2495.6,2495.5,25.84332302]
[1747771238342,0.80108,2495.6,2495.5,28.98141065]
[1747771238536,0.80108,2495.6,2495.5,25.77361065]
[1747771238841,0.00600252,2495.9,2495.5,33.98141065]
[1747771239148,0.80701252,2495.9,2495.8,7.5538205]
[1747771240443,0.00600252,2495.9,2495.8,7.5538205]
[1747771240638,0.80091,2496.2,2495.8,7.5538205]
[1747771240948,3.2078,2496.6,2495.6,3.2078]
[1747771241244,0.80092,2496.1,2496.0,4.3460205]
[1747771241940,0.00600252,2496.3,2496.0,4.3460205]
[1747771242142,0.80686252,2496.3,2496.2,4.3460205]
[1747771242936,0.80089,2496.2,2496.1,4.5618]
[1747771243131,0.80094,2496.1,2495.9,20.191]
[1747771243336,0.80094,2496.1,2496.0,7.5538205]
[1747771244441,0.00600252,2496.3,2496.0,7.5538205]
[1747771244646,0.00600252,2496.3,2496.2,4.3460205]
[1747771245049,0.00600252,2496.3,2496.2,5.1469105]
[1747771245745,3.2078,2497.4,2496.2,9.3460205]
[1747771245936,3.2078,2497.9,2497.6,4.3460205]
[1747771246140,0.80041,2497.7,2497.6,4.3460205]
[1747771246340,4.5826,2498.2,2497.6,24.5370205]
[1747771246543,0.80041,2497.7,2497.6,20.191]
[1747771247035,0.80041,2497.7,2497.6,4.3460205]
[1747771247235,0.80047,2497.5,2497.4,0.00600252]
[1747771247435,0.80047,2497.5,2497.4,4.35202302]
[1747771248246,2.80251,2497.5,2497.4,0.00600252]
[1747771249237,2.80251,2497.5,2497.4,4.35202302]
[1747771249238,0.80047,2497.5,2497.4,4.35202302]
[1747771249946,2.80251,2497.5,2497.4,2.52e-06]
[1747771250244,4.14471,2497.5,2497.4,2.52e-06]
[1747771250444,9.14471,2497.5,2497.4,2.52e-06]
[1747771251540,4.14471,2497.5,2497.4,2.52e-06]
[1747771252943,2.80251,2497.5,2497.4,2.52e-06]
[1747771253145,0.00596963,2497.9,2497.4,4.34602302]
[1747771253352,0.80037,2497.8,2497.7,4.3460205]
[1747771253843,0.80047,2497.5,2497.4,2.52e-06]
[1747771254243,2.80251,2497.5,2497.4,2.52e-06]
[1747771254447,9.14171,2497.5,2497.4,2.52e-06]
[1747771255840,4.14171,2497.5,2497.4,2.52e-06]
[1747771256037,4.14171,2497.5,2497.4,4.34602302]
[1747771256249,0.80045,2497.6,2497.4,4.34602302]
[1747771256459,0.80037,2497.8,2497.7,4.3460205]
[1747771256955,0.80044,2497.6,2497.5,1.3715]
[1747771257148,3.21376963,2497.9,2497.7,4.3460205]
[1747771257348,0.80044,2497.6,2497.5,1.3715]
[1747771257853,2.8024,2497.6,2497.5,5.7175205]
[1747771258256,0.80044,2497.6,2497.5,5.7175205]
[1747771258455,2.8024,2497.6,2497.5,5.7175205]
[1747771259356,0.80044,2497.6,2497.5,5.7175205]
[1747771259563,0.80044,2497.6,2496.5,0.80077]
[1747771259564,0.80068,2496.9,2496.5,0.80077]
[1747771259744,3.2078,2497.2,2496.1,1.3692]
[1747771259944,3.2078,2496.9,2496.1,20.7912]
[1747771260147,4.00865,2496.4,2496.1,20.7912]
[1747771260362,4.00865,2496.4,2496.1,1.3692]
[1747771260363,3.2078,2496.4,2496.1,1.3692]
[1747771260656,0.80084,2496.4,2496.1,1.3692]
[1747771260857,0.00600252,2496.5,2496.1,1.3692]
[1747771261049,0.80085,2496.4,2496.1,1.3692]
[1747771261248,0.80092,2496.1,2496.0,0.36245965]
[1747771261551,0.80092,2496.1,2495.6,19.423]
[1747771261552,2.00272,2495.6,2494.0,5.21178]
[1747771261850,3.2078,2495.4,2495.3,0.80118]
[1747771262155,0.80115,2495.4,2495.1,19.423]
[1747771262363,0.8012,2495.3,2495.1,19.423]
[1747771262551,4.01496252,2495.4,2495.1,19.423]
[1747771262751,3.21380252,2495.4,2495.1,19.423]
[1747771263351,0.8012,2495.3,2495.1,19.423]
[1747771263558,3.21380252,2495.4,2495.1,19.423]
[1747771263756,4.01495252,2495.4,2495.1,19.423]
[1747771263957,3.21380252,2495.4,2495.2,19.426]
[1747771264154,0.00600252,2495.4,2495.3,0.80118]
[1747771264354,0.80124,2495.1,2495.0,0.00600252]
[1747771264552,3.21380252,2495.4,2495.0,0.00600252]
[1747771264759,3.21380252,2495.4,2495.0,5.00600252]
[1747771264951,0.00600252,2495.4,2495.1,1.3803]
[1747771265149,3.21380252,2495.4,2495.1,1.3803]
[1747771265352,3.21380252,2495.4,2495.2,19.426]
[1747771265563,3.21380252,2495.4,2495.3,1.3803]
[1747771265862,4.01494252,2495.4,2495.3,20.8063]
[1747771266063,4.01494252,2495.4,2495.3,25.8063]
[1747771267263,4.01494252,2495.4,2495.3,6.3803]
[1747771267458,3.21380252,2495.4,2495.3,25.8083]
[1747771267763,3.21380252,2495.4,2495.3,26.60948]
[1747771268258,3.2078,2496.4,2495.7,2.00257]
[1747771268460,0.80095,2496.0,2495.9,3.2078]
[1747771268664,3.2078,2496.4,2495.9,3.2078]
[1747771268854,0.80102,2495.8,2495.7,19.428]
[1747771269157,4.00882,2495.8,2495.7,19.428]
[1747771269356,0.80102,2495.8,2495.7,19.428]
[1747771269864,4.00882,2495.8,2495.7,19.428]
[1747771270859,3.2078,2495.8,2495.5,19.429]
[1747771271067,0.80108,2495.6,2495.5,19.429]
[1747771271262,2.00272,2495.6,2495.0,1.74965252]
[1747771271559,0.80111,2495.5,2495.4,19.429]
[1747771272160,0.80111,2495.5,2495.4,25.23013]
[1747771272456,0.80111,2495.5,2495.4,24.429]
[1747771272659,0.80111,2495.5,2495.4,25.23014]
[1747771272860,3.2078,2495.9,2495.4,24.429]
[1747771273065,3.2078,2495.9,2495.4,19.429]
[1747771273260,0.80107,2495.7,2495.6,0.80106]
[1747771273763,0.80104,2495.8,2495.7,0.80104]
[1747771274765,0.80104,2495.8,2495.7,20.23104]
[1747771276372,3.2078,2495.9,2495.3,3.2078]
[1747771276570,3.2078,2495.9,2495.4,19.43]
[1747771276868,0.80106,2495.7,2495.6,0.80105]
[1747771277256,0.80106,2495.7,2495.6,5.80105]
[1747771277464,3.2078,2495.9,2495.3,22.6378]
[1747771277663,3.2078,2495.9,2495.8,0.80102]
[1747771277871,0.00600252,2496.0,2495.9,0.80098]
[1747771278065,0.00600252,2496.0,2495.9,23.43878]
[1747771278264,4.5079,2496.8,2496.5,0.80077]
[1747771278463,0.80092,2496.2,2496.1,0.80089]
[1747771278666,6.50966,2496.8,2496.1,19.43]
[1747771279068,6.50966,2496.8,2496.1,21.43229]
[1747771279268,0.80083,2496.5,2496.4,0.8008]
[1747771279572,0.80083,2496.5,2496.4,0.80082]
[1747771279573,0.8008,2496.5,2496.4,0.80082]
[1747771279764,0.8008,2496.5,2496.3,0.80084]
[1747771279969,0.8008,2496.5,2496.3,0.80083]
[1747771280170,0.80081,2496.5,2496.2,0.00600252]
[1747771280369,0.00596963,2496.7,2496.6,0.80076]
[1747771280764,0.00596963,2496.7,2496.6,9.00856]
[1747771281771,0.00596963,2496.7,2496.6,22.84756]
[1747771282276,0.00596963,2496.7,2496.6,27.84756]
[1747771282866,0.00596963,2496.7,2496.6,59.93976]
[1747771283975,0.00596963,2496.7,2496.6,63.14756]
[1747771284169,3.2078,2497.3,2496.7,2.00182]
[1747771284368,0.80058,2497.2,2497.1,0.80057]
[1747771284769,3.2078,2497.3,2497.0,0.80061]
[1747771284770,0.80062,2497.1,2497.0,0.80061]
[1747771284971,2.00142,2497.2,2496.5,18.835]
[1747771285276,0.80076,2496.6,2496.5,18.835]
[1747771285770,1.4143,2496.7,2496.5,18.835]
[1747771285975,2.21506,2496.7,2496.6,0.80076]
[1747771286176,0.80076,2496.6,2496.5,19.63577]
[1747771286378,0.80076,2496.6,2496.5,18.835]
[1747771286566,0.80082,2496.4,2496.2,3.21380252]
[1747771286767,4.00866,2496.3,2496.2,0.00600252]
[1747771286973,5.42296,2496.3,2496.2,0.00600252]
[1747771287171,7.425965,2496.3,2496.2,0.00600252]
[1747771287377,5.42296,2496.3,2496.2,0.00600252]
[1747771287775,3.2078,2496.7,2496.2,0.00600252]
[1747771288071,0.80082,2496.5,2496.4,0.80081]
[1747771288273,0.80086,2496.3,2496.2,0.00600252]
[1747771288580,0.80086,2496.3,2496.2,19.64189252]
[1747771289082,0.80086,2496.3,2496.2,0.00600252]
[1747771289480,0.80086,2496.3,2496.2,18.84100252]
[1747771289681,2.16196,2496.3,2496.2,18.84100252]
[1747771291382,2.16196,2496.3,2496.2,0.00600252]
[1747771292082,4.164965,2496.3,2496.2,0.00600252]
[1747771293285,2.16196,2496.3,2496.2,0.00600252]
[1747771294385,4.164965,2496.3,2496.2,0.00600252]
[1747771296777,4.164965,2496.3,2496.2,2.52e-06]
[1747771296976,1.3611,2496.3,2496.2,3.20780252]
[1747771297178,6.22983965,2497.0,2496.3,2.00215]
[1747771297375,6.22983965,2497.0,2496.4,18.061]
[1747771297376,5.42918965,2497.0,2496.4,18.061]
[1747771297580,5.42918965,2497.0,2496.8,0.80067]
[1747771297788,0.97370863,2496.9,2496.8,0.80067]
[1747771297983,1.77439863,2496.9,2496.7,1.305]
[1747771298180,0.97370863,2496.9,2496.8,18.061]
[1747771298389,1.77436863,2496.9,2496.8,18.061]
[1747771298685,0.80069,2496.8,2496.7,18.061]
[1747771299081,2.803295,2496.8,2496.7,18.061]
[1747771300288,2.08659,2496.8,2496.7,18.061]
[1747771300483,1.2859,2496.8,2496.7,18.061]
[1747771300682,2.08659,2496.8,2496.7,18.061]
[1747771300888,4.089195,2496.8,2496.7,18.061]
[1747771301088,4.089195,2496.8,2496.7,18.86173]
[1747771301590,4.089195,2496.8,2496.7,18.061]
[1747771302285,0.80085,2496.4,2496.3,0.80083]
[1747771302693,0.8008,2496.5,2496.4,0.8008]
[1747771302988,0.80086,2496.3,2496.2,2.52e-06]
[1747771303296,4.25700345,2496.3,2496.2,2.52e-06]
[1747771303478,11.26000845,2496.3,2496.2,2.52e-06]
[1747771304377,2.00223,2496.2,2495.3,0.80117]
[1747771304578,0.80118,2495.3,2495.2,18.69363878]
[1747771305180,0.80118,2495.3,2495.2,18.059]
[1747771305582,0.00600252,2495.5,2495.4,0.80114]
[1747771305781,2.00972752,2495.5,2495.0,41.68300252]
[1747771306081,0.80118,2495.3,2495.2,3.2078]
[1747771306286,1.2984,2495.4,2495.1,18.061]
[1747771306489,0.80121,2495.2,2495.1,18.061]
[1747771306795,0.80118,2495.3,2495.2,0.80119]
[1747771307293,0.80124,2495.1,2495.0,40.37600252]
[1747771307495,0.80124,2495.1,2495.0,58.43700252]
[1747771307884,2.80521,2495.1,2495.0,0.00600252]
[1747771308089,2.00327,2494.9,2494.2,19.4522]
[1747771308286,3.2078,2494.7,2494.3,2.10668]
[1747771308591,0.8015,2494.3,2494.2,18.86252]
[1747771308891,2.00351,2494.6,2494.2,18.061]
[1747771308892,1.4093,2494.6,2494.2,18.061]
[1747771309099,0.80147,2494.4,2494.3,0.80147]
[1747771309394,1.4093,2494.6,2494.2,18.06700252]
[1747771309596,0.8015,2494.3,2494.2,18.06700252]
[1747771310796,0.8015,2494.3,2494.2,0.00600252]
[1747771311292,4.0093,2494.3,2494.2,0.00600252]
[1747771311499,0.80172,2493.6,2493.5,18.064]
[1747771311799,0.80172,2493.6,2493.5,19.4308]
[1747771312293,2.806895,2493.6,2493.5,18.064]
[1747771312993,2.005175,2493.6,2493.3,0.8078248]
[1747771313198,2.00458,2493.3,2491.7,2.00578]
[1747771313497,3.2078,2492.8,2492.4,2.00528]
[1747771313695,3.2078,2492.8,2492.3,1.3049]
[1747771313897,4.00988,2492.5,2492.4,0.80209]
[1747771314096,0.707,2493.5,2492.4,0.80209]
[1747771314392,2.69785,2493.6,2493.0,0.80192]
[1747771314393,3.2078,2493.1,2493.0,0.80192]
[1747771314791,0.80193,2493.0,2492.8,0.80195]
[1747771314992,3.2078,2493.1,2492.4,3.2078]
[1747771315190,0.80199,2492.8,2492.5,1.3049]
[1747771315390,1.3301,2492.9,2492.5,2.10696]
[1747771315590,1.3301,2492.9,2492.5,1.3049]
[1747771315591,5.340835,2492.9,2492.5,1.3049]
[1747771315797,3.2078,2492.7,2492.5,1.3049]
[1747771315993,0.80204,2492.6,2492.5,1.3049]
[1747771316301,0.80211,2492.4,2492.3,18.072]
[1747771316594,0.80214,2492.3,2492.2,0.0060148]
[1747771317097,4.19586,2492.3,2492.2,0.0060148]
[1747771317292,2.18964,2492.3,2492.2,0.0060148]
[1747771317499,4.19586,2492.3,2492.2,0.0060148]
[1747771317698,8.39372,2492.3,2491.0,3.2078]
[1747771317892,3.2078,2491.2,2491.1,0.8025]
[1747771318092,0.80235,2491.7,2491.5,0.80237]
[1747771318288,2.006,2491.5,2490.9,1.3788]
[1747771318495,3.2078,2491.2,2490.9,1.3788]
[1747771318701,3.2078,2491.2,2490.8,0.0060148]
[1747771318889,4.01039,2490.9,2490.8,0.0060148]
[1747771319389,6.017735,2490.9,2490.8,0.0060148]
[1747771319594,3.2078,2490.9,2490.8,0.8086348]
[1747771319804,0.0060148,2491.2,2491.1,0.80253]
[1747771320102,6.618,2493.9,2491.1,3.2078]
[1747771320103,3.2078,2492.4,2491.1,3.2078]
[1747771320302,1.3437,2492.6,2491.9,3.2078]
[1747771320601,1.3437,2492.6,2492.2,3.2078]
[1747771320899,1.3437,2492.6,2492.3,1.3966]
[1747771321402,2.14576,2492.6,2492.4,0.8021]
[1747771321802,2.14576,2492.6,2492.4,0.80211]
[1747771322003,2.14576,2492.6,2492.3,1.3966]
[1747771322004,1.3437,2492.6,2492.3,1.3966]
[1747771322204,0.0060148,2492.7,2492.3,1.3966]
[1747771322405,0.80206,2492.6,2492.4,0.80209]
[1747771322598,0.0060148,2492.7,2492.3,1.3966]
[1747771322892,0.80207,2492.6,2492.4,0.80209]
[1747771323095,2.1936548,2492.7,2492.5,0.80208]
[1747771323503,0.0060148,2492.7,2492.6,0.80204]
[1747771324096,0.0060148,2492.7,2492.4,18.083]
[1747771324301,0.80208,2492.5,2492.4,18.083]
[1747771324498,0.80208,2492.5,2492.4,19.4789]
[1747771324706,1.3916148,2492.7,2492.2,3.2138148]
[1747771325196,1.3916148,2492.7,2492.3,1.3959]
[1747771325402,1.3916148,2492.7,2492.6,0.80204]
[1747771325904,0.0060148,2492.7,2492.5,0.80205]
[1747771326108,0.80206,2492.6,2492.3,19.4799]
[1747771326406,1.3419148,2492.7,2492.3,19.4799]
[1747771326606,0.80206,2492.6,2492.5,0.80206]
[1747771326908,0.80205,2492.6,2492.5,0.80207]
[1747771327304,2.80803,2492.6,2492.5,0.80207]
[1747771327709,0.80211,2492.4,2492.3,19.4799]
[1747771327900,0.80211,2492.4,2492.3,20.28204]
[1747771328105,1.4188,2492.5,2492.4,0.80211]
[1747771328304,1.4188,2492.5,2492.4,2.16221]
[1747771328920,1.4188,2492.5,2490.9,3.2078]
[1747771328921,2.00546,2492.2,2490.9,3.2078]
[1747771329114,3.2078,2491.6,2491.1,2.00629]
[1747771329301,1.4188,2491.5,2491.4,0.80243]
[1747771329505,3.2078,2491.6,2491.5,0.8024]
[1747771329711,3.2078,2491.6,2491.5,18.2914]
[1747771330204,3.2078,2491.6,2491.5,18.2934]
[1747771330512,0.80237,2491.6,2491.5,18.29338]
[1747771331013,0.80237,2491.6,2491.5,0.80239]
[1747771331208,4.01017,2491.6,2491.5,17.491]
[1747771332410,3.2078,2492.5,2491.8,0.8023]
[1747771332603,1.3312,2492.4,2492.3,0.80214]
[1747771332803,0.0060148,2492.7,2492.6,0.80204]
[1747771333502,0.0060148,2492.7,2492.2,43.6428]
[1747771333702,2.1284248,2492.7,2492.6,17.493]
[1747771334112,4.1343198,2492.7,2492.6,17.493]
[1747771334707,0.0060148,2492.7,2492.6,18.29504]
[1747771336910,0.0060148,2492.7,2492.6,23.29504]
[1747771337110,3.2078,2493.6,2492.6,36.032]
[1747771337307,0.80178,2493.5,2493.3,0.80181]
[1747771337511,0.80178,2493.5,2493.4,17.492]
[1747771337818,2.17668,2493.5,2493.4,17.492]
[1747771338210,1.3749,2493.5,2493.3,0.80179]
[1747771338415,0.80179,2493.4,2493.3,0.80179]
[1747771339014,0.0060148,2493.7,2493.6,0.80172]
[1747771339218,0.8077048,2493.7,2493.6,0.80172]
[1747771339619,0.8077048,2493.7,2493.5,0.80174]
[1747771339812,0.8077048,2493.7,2493.6,2.20412]
[1747771340012,0.8077048,2493.7,2493.6,17.49]
[1747771340208,2.1222048,2493.7,2493.6,17.49]
[1747771341708,0.0060148,2493.7,2493.6,18.29172]
[1747771342119,0.8077048,2493.7,2493.6,17.49]
[1747771343015,0.80179,2493.4,2493.3,0.32070001]
[1747771343218,2.00457,2493.3,2493.0,0.26809359]
[1747771343406,0.80211,2492.4,2492.0,40.428]
[1747771343606,0.80211,2492.4,2492.1,17.488]
[1747771343607,4.00991,2492.4,2492.1,17.488]
[1747771343818,0.80227,2491.9,2491.8,0.89473312]
[1747771344018,0.80227,2491.9,2491.8,1.69703312]
[1747771344019,3.2078,2491.9,2491.8,1.69703312]
[1747771344211,3.2078,2491.9,2491.8,2.99793312]
[1747771344717,3.2078,2491.9,2491.8,2.1032]
[1747771345109,3.2078,2491.9,2491.7,17.488]
[1747771345321,4.5487,2491.9,2491.7,17.488]
[1747771345509,0.0060148,2492.1,2492.0,0.80224]
[1747771346014,3.2078,2492.9,2492.2,2.00544]
[1747771346220,3.2078,2493.5,2492.8,3.2078]
[1747771346411,3.2078,2493.5,2493.4,0.80179]
[1747771346712,0.80192,2493.0,2492.9,1.3027]
[1747771346917,0.80192,2493.0,2492.9,18.7927]
[1747771347118,0.80192,2493.0,2492.9,17.49]
[1747771347314,2.807575,2493.0,2492.9,17.49]
[1747771347514,0.80192,2493.0,2492.9,17.49]
[1747771348614,1.2905,2493.1,2492.9,17.49]
[1747771348819,3.2138148,2493.2,2492.9,17.49]
[1747771349019,0.8019,2493.1,2493.0,1.3923]
[1747771349219,0.8019,2493.1,2493.0,2.19422]
[1747771349420,0.80188,2493.1,2493.0,1.3923]
[1747771350119,4.0156848,2493.2,2493.0,1.3923]
[1747771350317,3.2138148,2493.2,2493.0,2.1942]
[1747771350522,4.0156848,2493.2,2493.1,0.80188]
[1747771350722,4.0156848,2493.2,2493.0,1.3923]
[1747771350723,0.80188,2493.1,2493.0,2.19419]
[1747771351016,0.80188,2493.1,2493.0,1.3923]
[1747771351320,0.80188,2493.1,2493.0,2.19422]
[1747771351627,4.0156848,2493.2,2493.1,0.80188]
[1747771351815,3.2138148,2493.2,2493.1,0.80188]
[1747771352323,3.2138148,2493.2,2493.0,1.3923]